Cogmind - Beta 15 @@@ ROGUE MODE // 2025.09.30 @ 07:39:23 Player: nam192 Result: Destroyed by G-34 Mercenary with Small Laser Performance ------------- Evolutions (1) 500 Regions Visited (3) 600 Robots Destroyed (33) 165 Value Destroyed (690) 690 Prototype IDs (0) 0 Alien Tech Used (0) 0 Bonus (0) 0 TOTAL SCORE: 1955 Bonus ------- None Cogmind --------- Core Integrity 0/400 Matter 165/300 Energy 100/100 System Corruption 0% Temperature Cool (6) Movement Core (1550) Ox30 Location -9/Materials Parts ------- > --- POWER (2) -------- (None) > --- PROPULSION (3) --- (None) > --- UTILITY (2) ------ Huge Storage Unit Hardened Light Armor Plating > --- WEAPON (2) ------- Heavy Hammer Heavy Flail > --- INVENTORY (25) --- Aluminum Leg Aluminum Leg Flight Unit Flight Unit Heat Sink Improved Heat Sink Cooling System Small Storage Unit Visual Processing Unit Targeting Computer Hardened Light Armor Plating Light EM Pulse Cannon Particle Cannon Light Assault Rifle Light Assault Rifle Light Assault Rifle Light Assault Rifle Mini Grenade Launcher Peak State ------------ > --- POWER ------------ Light Ion Engine Light Ion Engine > --- PROPULSION ------- Light Treads Improved Treads Improved Treads > --- UTILITY ---------- Huge Storage Unit ECM Suite > --- WEAPON ----------- Light Assault Rifle Mini Grenade Launcher > --- INVENTORY -------- Light Ion Engine Light Ion Engine Light Treads Improved Treads Improved Treads Aluminum Leg Aluminum Leg Wheel Flight Unit Flight Unit Flight Unit Heat Sink Improved Heat Sink Small Storage Unit Targeting Computer Light EM Pulse Cannon Particle Cannon Light Assault Rifle Light Assault Rifle Light Assault Rifle Mini Grenade Launcher Heavy Hammer [Rating: 15] Favorites ----------- Power Light Ion Engine Engine Light Ion Engine Propulsion Improved Treads Treads Improved Treads Wheel Wheel Flight Unit Flight Unit Utility Huge Storage Unit Device ECM Suite Storage Huge Storage Unit Protection Hardened Light Armor Plating Weapon Light Assault Rifle Energy Gun EM Pulse Gun Ballistic Gun Light Assault Rifle Launcher Mini Grenade Launcher Impact Weapon Heavy Hammer Build | -11 -10 -10 -9 ------- Run | Yrd Mat Min Mat Slots Evolved 2 | . . . 2 Power 1 | . . . 1 Propulsion 1 | . . . 1 Utility . | . . . . Weapon . | . . . . Parts Attached 30 | 7 5 1 17 Power 7 | 2 1 1 3 Engine 7 | 2 1 1 3 Core . | . . . . Reactor . | . . . . Propulsion 12 | 2 . . 10 Treads 7 | . . . 7 Leg . | . . . . Wheel 2 | 2 . . . Hover . | . . . . Flight 3 | . . . 3 Utility 4 | 1 2 . 1 Device 1 | . 1 . . Storage 2 | 1 1 . . Processor . | . . . . Hackware . | . . . . Protection 1 | . . . 1 Artifact . | . . . . Weapon 7 | 2 2 . 3 Energy Gun 1 | 1 . . . Energy Cannon . | . . . . Ballistic Gun 3 | 1 1 . 1 Ballistic Cannon . | . . . . Launcher 1 | . 1 . . Special Weapon . | . . . . Impact Weapon 2 | . . . 2 Slashing Weapon . | . . . . Piercing Weapon . | . . . . Special Melee Weapon . | . . . . Unidentified Prototypes . | . . . . Parts Lost 14 | . . 1 13 Power 3 | . . . 3 Propulsion 7 | . . 1 6 Utility 1 | . . . 1 Weapon 3 | . . . 3 Highest Loss Streak 8 | . . 1 8 To Critical Strikes . | . . . . Average Backups 17 | 3 10 17 21 Power 1 | . 1 2 1 Propulsion 6 | 2 5 6 6 Utility 4 | . 1 3 6 Weapon 5 | . 2 5 7 Tool/Special . | . . . . Unused Backups 14 | . . . 14 Power . | . . . . Propulsion 2 | . . . 2 Utility 6 | . . . 6 Weapon 6 | . . . 6 Tool/Special . | . . . . Average Slot Usage (%) 90 | . 98 93 87 Engine 14 | . 14 14 14 Treads 15 | . . . 26 Wheel 10 | . 28 22 . Flight 2 | . . . 3 Device 10 | . 12 14 8 Storage 12 | . 14 14 11 Ballistic Gun 13 | . 21 14 10 Launcher 8 | . 4 14 8 Impact Weapon 1 | . . . 2 Peak Build Rating 15 | 6 9 10 15 Average Rating 11 | 5 7 9 13 On Entrance 6 | . 6 9 9 Naked Turns . | . . . . Heaviest Build 92 | 13 89 87 92 Greatest Support 66 | 26 26 26 66 Greatest Overweight (x) 30 | . 3 8 30 Average Overweight (x) 2 | . 2 4 1 Largest Inventory Capacity 25 | 8 25 25 25 Average Capacity 23 | 7 21 25 25 Most Carried 25 | 6 15 20 25 Average Carried 17 | 3 10 17 21 Final Capacity 25 | 8 25 25 25 Final Carried 20 | 6 14 20 18 Class Distribution -------------------- 93% | Mutant 6% | Scavenger-Mutant Dominant Class ---------------- Mutant | -10/Materials Mutant | -10/Mines Mutant | -9/Materials Resources | -11 -10 -10 -9 ----------- Run | Yrd Mat Min Mat Matter Collected 662 | 205 142 44 271 Remotely . | . . . . Salvage Created 604 | . 163 40 401 Parts 51 | . 13 8 30 Haulers Intercepted . | . . . . Recyclers Shooed . | . . . . Parts Field Recycled . | . . . . Retrieved Matter . | . . . . Parts Self-Destructed . | . . . . Prevented . | . . . . Kills | -11 -10 -10 -9 ------- Run | Yrd Mat Min Mat Combat Hostiles Destroyed 24 | . 5 6 13 Melee 2 | . . . 2 Guns 6 | . 5 1 . AOE 14 | . . 5 9 Classes Destroyed 7 | . 3 . 4 Worker 1 | . 1 . . Builder 3 | . . . 3 Recycler 1 | . . . 1 Watcher 4 | . . . 4 Swarmer 13 | . 3 6 4 Grunt 7 | . 2 . 5 Sentry 4 | . . . 4 Best Kill Streak 5 | . 2 3 5 Combat Bots Only 5 | . 2 3 5 Max Kills in Single Turn 3 | . 1 3 2 Gunslinging . | . . . . Exploded 3 | . . 3 2 Melee 1 | . . . 1 Uniques/NPCs Destroyed . | . . . . Combat | -11 -10 -10 -9 -------- Run | Yrd Mat Min Mat Hostile Shots Fired 236 | . 37 7 192 Missed 63 | . 13 1 49 Hits 173 | . 24 6 143 Projectile 173 | . 24 6 143 Critical Strikes 6 | . . . 6 Damage Taken 2316 | 2 224 66 2024 Core 476 | 1 66 . 409 Absorbed by Shields . | . . . . Core Remaining (%) 86 | 99 . 73 . Volleys Fired 70 | . 25 3 42 Largest 2 | . 2 2 2 Hottest 50 | . 50 50 50 Shots Fired 117 | . 48 6 63 Gun 91 | . 47 3 41 Cannon . | . . . . Launcher 26 | . 1 3 22 Special . | . . . . Kinetic 91 | . 47 3 41 Thermal . | . . . . Explosive 26 | . 1 3 22 Electromagnetic . | . . . . Robot Hit Streak 14 | . 5 2 14 Robot Miss Streak 3 | . 3 1 3 Penetration Max . | . . . . Secondary Targets 3 | . 3 . . Max Gunslinging Chain 1 | . 1 . . Shots Hit Robots 84 | . 24 3 57 Core Hits 50 | . 11 6 33 Critical Kills 1 | . 1 . . Critical Parts Destroyed 4 | . . . 4 Critical Strikes 5 | . 1 . 4 Destroy 2 | . 1 . 1 Smash 3 | . . . 3 Melee Attacks 12 | . . . 12 Impact 12 | . . . 12 Slashing . | . . . . Piercing . | . . . . Sneak Attacks . | . . . . Combat Hostiles . | . . . . Follow-up Attacks . | . . . . Damage Inflicted 2441 | 6 237 214 1984 Guns 425 | . 188 10 227 Cannons . | . . . . Explosions 1724 | . 49 204 1471 Melee 266 | . . . 266 Ramming 26 | 6 . . 20 Kinetic 425 | . 188 10 227 Thermal . | . . . . Explosive 1724 | . 49 204 1471 Electromagnetic . | . . . . Impact 266 | . . . 266 Slashing . | . . . . Piercing . | . . . . Highest Corruption . | . . . . Average Corruption . | . . . . Corruption Purged . | . . . . Corruption Blocked . | . . . . Overload Shots . | . . . . Overflow Damage 151 | . . 3 148 Projectiles . | . . . . Explosions 52 | . . 3 49 Melee 99 | . . . 99 Knockbacks . | . . . . Impact . | . . . . Kinetic . | . . . . Secondary . | . . . . Self-Inflicted Damage 361 | 2 . 24 335 Shots 13 | . . 1 12 Rammed 4 | 2 . . 2 Targets Rammed 4 | 2 . . 2 Kicked . | . . . . Crushed . | . . . . Highest Temperature 66 | . 18 10 66 Average Temperature 16 | . 10 7 18 Received Heat Transfer 705 | . 42 . 663 Siege Activations . | . . . . Martial Activations . | . . . . Shielding Activations . | . . . . Robots Disrupted . | . . . . Combat Hostiles . | . . . . Robots Corrupted 3 | . . . 3 Combat Hostiles 2 | . . . 2 Parts Fried 5 | . . . 5 Impact Corruptions 5 | . . . 5 Robots Melted . | . . . . Combat Hostiles . | . . . . Parts Melted . | . . . . Heat Transferred . | . . . . Parts Sabotaged . | . . . . Parts Stolen . | . . . . Parts Stripped . | . . . . Power Chain Reactions . | . . . . Alert | -11 -10 -10 -9 ------- Run | Yrd Mat Min Mat Maximum Alert Level . | . . . . Low Security (%) 100 | 100 100 100 100 Level 1 . | . . . . Level 2 . | . . . . Level 3 . | . . . . Level 4 . | . . . . Level 5 . | . . . . High Security . | . . . . Max Security . | . . . . Peak Influence 194 | . 80 96 194 Initial 13 | . . 5 13 Average 61 | . 37 50 78 Influence Increases 869 | . 135 183 551 Destroy 0b10 Robot/C 480 | . 100 120 260 Destroy 0b10 Robot/NC 45 | . 5 . 40 Destroy Leader 128 | . 20 20 88 Successful Hack 6 | . . . 6 Disable Machine 45 | . . 15 30 Destroy Structure 165 | . 10 28 127 Influence Decreases 748 | . 120 162 466 Entered New Map 33 | . . 10 23 Time Decay 575 | . 120 142 313 Lost Part 140 | . . 10 130 Squads Dispatched 3 | . . . 3 Investigation 1 | . . . 1 Extermination . | . . . . Reinforcement 2 | . . . 2 Assault . | . . . . Garrison . | . . . . Intercept . | . . . . Searches Triggered . | . . . . Construction Impeded 1 | . . . 1 Haulers Reinforced . | . . . . Active Scanning Responses . | . . . . Cargo Convoy Interrupts . | . . . . Stealth | -11 -10 -10 -9 --------- Run | Yrd Mat Min Mat Distress Signals 1 | . 1 . . Communications Jammed . | . . . . Distress Signals . | . . . . Times Spotted 41 | . 10 6 25 Peak Tracking Total 5 | . 3 3 5 Tactical Retreats 2 | . 1 . 1 Traps | -11 -10 -10 -9 ------- Run | Yrd Mat Min Mat Traps Triggered . | . . . . Indirectly . | . . . . Trap Hack Attempts . | . . . . Triggered . | . . . . Disarmed 1 | . . . 1 Reprogrammed . | . . . . Reused . | . . . . Traps Extracted . | . . . . Installed . | . . . . Triggered . | . . . . Machines | -11 -10 -10 -9 ---------- Run | Yrd Mat Min Mat Machines Disabled 3 | . . 1 2 Max in Single Turn 1 | . . 1 1 Machines Repaired . | . . . . Machines Dismantled . | . . . . Machines Sabotaged . | . . . . Overloaded Fab Kills . | . . . . Hacking | -11 -10 -10 -9 --------- Run | Yrd Mat Min Mat Machines Accessed 3 | . . . 3 Terminals 2 | . . . 2 Fabricators . | . . . . Repair Stations . | . . . . Recycling Units . | . . . . Scanalyzers 1 | . . . 1 Garrison Access . | . . . . Total Hacks 13 | . . . 13 Successful 10 | . . . 10 Failed 3 | . . . 3 Catastrophic . | . . . . Database Lockouts . | . . . . Manual . | . . . . Terminals 11 | . . . 11 Fabricators . | . . . . Repair Stations . | . . . . Recycling Units . | . . . . Scanalyzers 2 | . . . 2 Garrison Access . | . . . . Terminal Hacks 8 | . . . 8 Record 4 | . . . 4 Locate Traps 1 | . . . 1 Disarm Traps 2 | . . . 2 Zone Layout 1 | . . . 1 Fabricator Hacks . | . . . . Repair Station Hacks . | . . . . Recycling Unit Hacks . | . . . . Scanalyzer 2 | . . . 2 Insert Component 1 | . . . 1 Analyze 1 | . . . 1 Garrison Access Hacks . | . . . . Unauthorized Hacks . | . . . . Terminals . | . . . . Fabricators . | . . . . Repair Stations . | . . . . Recycling Units . | . . . . Scanalyzers . | . . . . Garrison Access . | . . . . Data Cores Recovered . | . . . . Used . | . . . . Hacking Detections 1 | . . . 1 Full Trace Events 1 | . . . 1 Feedback Events . | . . . . Feedback Blocked . | . . . . Robot Schematics Acquired . | . . . . Robots Built . | . . . . Authchips . | . . . . Time . | . . . . Total Robot Build Rating . | . . . . Part Schematics Acquired 1 | . . . 1 Parts Built . | . . . . Authchips . | . . . . Time . | . . . . Total Part Build Rating . | . . . . Parts Repaired . | . . . . Time . | . . . . Parts Recycled . | . . . . Recycled Matter . | . . . . Retrieved Matter . | . . . . Retrieved Components . | . . . . Parts Scanalyzed 1 | . . . 1 Part Schematics Acquired 1 | . . . 1 Parts Damaged . | . . . . Bothacking | -11 -10 -10 -9 ------------ Run | Yrd Mat Min Mat Used RIF Installer . | . . . . Robots Hacked . | . . . . Non-combat . | . . . . Combat . | . . . . Robot Hacks Applied . | . . . . Relay Couplers Released . | . . . . Fabnet Peak Effective % . | . . . . Robots Rewired . | . . . . Allies Hacked . | . . . . Hacks Repelled . | . . . . Allies | -11 -10 -10 -9 -------- Run | Yrd Mat Min Mat Total Allies . | . . . . Largest Group . | . . . . Highest-Rated Group . | . . . . Highest-Rated Ally . | . . . . Total Orders . | . . . . Ally Attacks . | . . . . Total Damage . | . . . . Kills . | . . . . Allies Corrupted . | . . . . Allies Melted . | . . . . Intel | -11 -10 -10 -9 ------- Run | Yrd Mat Min Mat Active Infowar (turns) 1251 | . 284 313 654 ECM 1251 | . 284 313 654 Robot Analysis Total . | . . . . Derelict Logs Recovered . | . . . . Drone Launches . | . . . . Drone Recoveries . | . . . . Exploration | -11 -10 -10 -9 ------------- Run | Yrd Mat Min Mat Turns Passed 1578 | 73 302 313 890 Spaces Moved 705 | 65 184 192 264 Core 6 | 5 . . 1 Treads 247 | . . . 247 Legs . | . . . . Wheels 436 | 60 184 192 . Hover . | . . . . Flight 16 | . . . 16 Fastest Speed 50 | 50 90 135 240 Average Speed 184 | 86 120 155 274 Slowest Speed 1550 | 90 135 200 1550 Overloaded Moves . | . . . . Propulsion Burnouts . | . . . . Robots Hopped . | . . . . Potential Cave-ins . | . . . . Cave-ins Triggered . | . . . . Exploration Rate (%) 21 | 4 31 33 17 Regions Visited 3 Branch Regions 1 Pre-discovered Areas . | . . . . Known Exits Taken . | . . . . Unknown Exits Taken 3 | 1 1 1 . Scrap Searched 1 | . . 1 . Spaces Dug . | . . . . Terrain Destroyed 197 | . 9 38 150 Melee . | . . . . Projectile . | . . . . AOE 197 | . 9 38 150 Terrain Rammed . | . . . . Walls Destroyed . | . . . . Machines Disabled . | . . . . Actions | -11 -10 -10 -9 --------- Run | Yrd Mat Min Mat Total 863 | 78 225 200 360 Wait . | . . . . Move 702 | 64 183 191 264 Hop . | . . . . Pick Up 28 | 5 8 5 10 Fast Attach 9 | 6 1 . 2 Attach 15 | . 2 . 13 Detach 6 | . 2 . 4 Swap 9 | 1 2 1 5 Drop 8 | . 2 . 6 Fire 70 | . 25 3 42 Melee 12 | . . . 12 Ram 2 | 2 . . . Kick . | . . . . Crush 2 | . . . 2 Escape Stasis . | . . . . Rewire . | . . . . Trap . | . . . . Miscellaneous . | . . . . Route ------- -11/Scrapyard -10/Materials -10/Mines -9/Materials History --------- Turn | Location | Event 18 | -11/Scrapyard | Discovered new exit (range 16) 74 | -11/Scrapyard | Entered Materials 192 | -10/Materials | Discovered new exit (range 15) 307 | -10/Materials | Build established: Mutant 376 | -10/Materials | Entered Mines 683 | -10/Mines | Discovered new exit (range 3) 689 | -10/Mines | Entered Materials 689 | -9/Materials | Evolved 2 slots: Power x1, Propulsion x1 1332 | -9/Materials | Core integrity fell below 50% 1397 | -9/Materials | Lost 8 parts (2p3n1u2w) 1458 | -9/Materials | Core integrity fell below 20% 1579 | -9/Materials | Destroyed by G-34 Mercenary with Small Laser Last Messages --------------- Disarmed 1 EMP Trap. >>Traps(Disarm) No traps found in local area. ALERT: Suspicious activity at Terminal M010. Dispatching Investigation squad. U-05 Engineer lays Concrete. U-05 Engineer builds a Wall. K-01 Serf collects debris. K-01 Serf cleans the Terminal. The unstable cave ceiling collapses. K-01 Serf cleans the Terminal. U-05 Engineer builds a Wall. Lgt. Treads destroyed. Lgt. Assault Rifle destroyed. Imp. Treads destroyed. U-05 Engineer lays Concrete. U-05 Engineer builds a Wall. R-06 Scavenger collects Lgt. Treads. U-05 Engineer lays Concrete. U-05 Engineer builds a Wall. Map ----- +----------------------------------------------------+ | | | | | ?????????????????????????????????????????????????? | | ?????????????????????????????????????????????????? | | ?????????????????????????????????????????????????? | | ?????????????????????????????????????????????????? | | ?????????????????????????????????????????????????? | | ?????????????????????????????????????????????????? | | ?????????????????????????????????????????????????? | | ?????????????????????????????????????????????????? | | ?????????????????????????????????????????????????? | | ?????????????????????????????????????????????????? | | ?????????????????????????????????????????????????? | | ?????????????????????????????????????????????????? | | ??????????????+??????????????###########?????????? | | ??????????????# ?????????????# #?????????? | | ??????????????# ????????????# #????#####? | | ?????????????## ?????####### #???## ## | | ?????????????# ##### # #???+ | | ??????????#### # """ #????# ## | | ????? ? T + "" """ #????# ## | | ?????????????# ! # S"" """ #????# ## | | ?????????????# ##### # "" #????# ## | | ?????????????####??????##ggg## # ######+### ## | | ????????????????????????# # % ## | | ????????????????????????#@ ## = [## | | ???????????????????????## ## / | | ???????????????????????# a u## % # # # # | | ???????????????????????# ##+###### # ## | | ???????????????????? % # ## | | ??????????????????? % #### =+|= ## | | ???????????????????? k # !# = | | ???????????????????##### ######### #== | | ???????????????????????####### #### # # | | ????????????????????????# #######??## # ### ]! | | ??????????????????????? ? #???????### ###% ! | | ?????????????????????? ?? #???###### # # !! | | ?????????????????????? ??? #???# # ### = | | ??????????????????????????? #???# | | ???????????????????????????"#???# " ! | | ???????????????????????????T#???# | | ???????????????????????????"#???# #### # | | ??????????????????????????? #?### ##### | | ???????????????????????????##?#= #???#" """ | | ??????????????????????????????# ///!!#???#T """ | | ??????????????????????????????#////!!#???#" """ | | ??????????????????????????????########???# | | ?????????????????????????????????????????# """ | | ?????????????????????????????????????????# """ | | ?????????????????????????????????????????# """ | +----------------------------------------------------+ Best States ------------- Heat Dissipation 28 Energy Generation 15 Energy Capacity 275 Matter Stores 300 Matter Capacity 300 Sight Range 16 Terrain Scan Density 10 ECM Strength 1 Armor Coverage 150 Evasion (%) 44 Recoil Reduction 3 Item Schematics ----------------- Mni. Grenade Launcher | -9/Materials | Scanalyzed Robot Schematics ------------------ None Fabricated ------------ Nothing Repaired ---------- Nothing Alien Tech Used ----------------- None Achievements -------------- None Challenges ------------ None Game ------ Seed AmuletTeleporterProtection Manual? 0 Play Time 00:14:42 Cumulative 3.3 hours Start 2025.09.29 @ 12:02:32 End 2025.09.30 @ 07:39:23 Sessions 4 Manual Loads 0 Difficulty Rogue Special Mode None Game No. 5 Rogue 2 Adventurer 3 Explorer 0 Win Type - Total 0 Types 0/0/0/0/0/0/0/0/0/0 Lore% 1 Gallery% 8 Achievement% 9 Wizard Run 0 Options --------- Layout 0 ASCII 0 Keyboard 1 Movement Arrows Keybinds 0 Fullscreen 1 Font 24/Smallcaps Map View 76x50 Zoom Use 0% Tactical HUD 0 Map Filters NONE Filters NONE Steam 1 RUN: 62530bc2-fbf1-43a8-9bde-7549506f92d3